bitfinex/quotes_BTCUSD_20240627
["timestamp","ask_amount","ask_price","bid_price","bid_amount"]
[1719468990210,0.493845,60748.0,60744.0,0.16233898]
[1719468990347,0.329245,60745.0,60744.0,0.16233898]
[1719468990557,0.329245,60745.0,60743.0,0.0068935]
[1719468990558,0.364625,60744.0,60743.0,0.0068935]
[1719468990764,1.023125,60744.0,60743.0,0.0068935]
[1719468992223,0.001,60745.0,60744.0,0.01]
[1719468992544,0.001,60745.0,60744.0,0.16233898]
[1719468992749,0.364625,60744.0,60743.0,0.0068935]
[1719468992976,0.364625,60744.0,60743.0,0.17323248]
[1719468993176,0.364625,60744.0,60743.0,0.19623248]
[1719468993328,0.2,60744.0,60743.0,0.20223248]
[1719468993733,0.2,60744.0,60743.0,0.19223248]
[1719468993935,0.365625,60744.0,60743.0,0.19223248]
[1719468994341,0.365625,60744.0,60743.0,0.0298935]
[1719468994514,0.695875,60744.0,60743.0,0.0338935]
[1719468995116,0.695875,60744.0,60743.0,0.0438935]
[1719468995302,0.002,60744.0,60743.0,0.37086048]
[1719468996114,0.002,60744.0,60743.0,0.20623248]
[1719468996513,0.002,60744.0,60743.0,0.19623248]
[1719468996712,0.695875,60744.0,60743.0,0.19623248]
[1719468996986,0.366625,60744.0,60743.0,0.19623248]
[1719468998715,0.695875,60744.0,60743.0,0.19623248]
[1719468999091,1.16414107,60744.0,60743.0,0.0338935]
[1719468999298,1.49339107,60744.0,60743.0,0.0338935]
[1719468999472,1.025125,60744.0,60743.0,0.0338935]
[1719468999881,0.202,60744.0,60743.0,0.0338935]
[1719469000037,0.202,60744.0,60743.0,0.04283577]
[1719469000678,0.002,60744.0,60743.0,0.20517475]
[1719469000848,0.002,60744.0,60743.0,0.36980275]
[1719469001603,0.2,60747.0,60743.0,0.53443075]
[1719469001752,0.2,60748.0,60746.0,0.01]
[1719469001953,0.02581026,60751.0,60749.0,0.17461]
[1719469002133,0.13696219,60753.0,60747.0,0.23554445]
[1719469002134,0.2,60748.0,60747.0,0.0090437]
[1719469002344,0.2,60745.0,60743.0,0.0348175]
[1719469002636,0.2,60745.0,60744.0,0.18533898]
[1719469003089,0.2,60745.0,60744.0,0.19533898]
[1719469003620,0.13696219,60753.0,60749.0,0.01]
[1719469003819,0.13696219,60753.0,60752.0,0.01]
[1719469004041,0.13696219,60753.0,60752.0,0.197603]
[1719469004257,0.13696219,60753.0,60752.0,0.033]
[1719469004626,0.13696219,60753.0,60752.0,1.01835598]
[1719469004873,0.13696219,60753.0,60752.0,1.10655598]
[1719469005136,0.13696219,60753.0,60752.0,1.43576298]
[1719469005345,0.13696219,60753.0,60752.0,1.09655598]
[1719469005750,0.13696219,60753.0,60752.0,1.09955598]
[1719469006993,0.13696219,60753.0,60752.0,1.20685598]
[1719469007146,0.00084,60757.0,60756.0,0.493777]
[1719469007349,0.00084,60757.0,60756.0,1.83078598]
[1719469007803,0.00084,60757.0,60756.0,1.84008643]
[1719469009089,0.00084,60757.0,60756.0,2.16927143]
[1719469009415,0.00084,60757.0,60756.0,2.36897143]
[1719469009607,0.00084,60757.0,60756.0,2.16897143]
[1719469010583,0.00084,60757.0,60756.0,1.54648643]
[1719469011471,0.00084,60757.0,60756.0,1.21730143]
[1719469011874,0.00184,60757.0,60756.0,1.55648643]
[1719469012436,0.00184,60757.0,60756.0,1.22730143]
[1719469013292,0.00284,60757.0,60756.0,1.24130143]
[1719469013773,0.00084,60757.0,60756.0,1.21730143]
[1719469014150,0.00284,60757.0,60756.0,1.24130143]
[1719469014382,0.00184,60757.0,60756.0,1.22730143]
[1719469014531,0.00084,60757.0,60756.0,1.21730143]
[1719469014707,0.00184,60757.0,60756.0,1.22530143]
[1719469015495,0.00284,60757.0,60756.0,1.23430143]
[1719469018783,0.00284,60757.0,60756.0,1.56348643]
[1719469018984,0.00284,60757.0,60756.0,1.76348643]
[1719469019202,0.00284,60757.0,60756.0,1.56348643]
[1719469021651,0.19939569,60768.0,60764.0,0.16457]
[1719469022006,0.19939569,60768.0,60765.0,0.1945691]
[1719469022438,0.19939569,60769.0,60765.0,0.3591361]
[1719469023083,0.006,60768.0,60765.0,0.3591361]
[1719469023258,0.006,60768.0,60765.0,0.1945691]
[1719469023477,0.006,60768.0,60767.0,0.164563]
[1719469023659,0.006,60768.0,60767.0,0.34990198]
[1719469023806,0.006,60768.0,60767.0,0.35913202]
[1719469024004,0.006,60768.0,60767.0,0.79009762]
[1719469024204,0.006,60768.0,60767.0,1.11922362]
[1719469024409,0.011,60768.0,60767.0,1.11922362]
[1719469024850,0.006,60768.0,60767.0,0.79009762]
[1719469025182,0.19939569,60772.0,60768.0,0.164558]
[1719469025462,0.19939569,60772.0,60769.0,0.36943936]
[1719469025667,0.19939569,60772.0,60769.0,0.35912593]
[1719469026320,0.26531469,60782.0,60774.0,0.1922]
[1719469026526,0.19939569,60782.0,60778.0,0.164533]
[1719469026751,0.19939569,60782.0,60779.0,0.18533898]
[1719469026918,0.19939569,60782.0,60779.0,0.19454126]
[1719469027128,0.329036,60784.0,60779.0,0.19454126]
[1719469027129,0.164527,60780.0,60779.0,0.19454126]
[1719469027287,0.493582,60780.0,60779.0,0.19454126]
[1719469027485,0.52844669,60781.0,60779.0,0.19454126]
[1719469027486,0.19939569,60781.0,60779.0,0.19454126]
[1719469027705,0.36392169,60781.0,60779.0,0.19454126]
[1719469027941,0.19939569,60781.0,60779.0,0.19454126]
[1719469028392,0.19939569,60781.0,60779.0,0.19554126]
[1719469028945,0.19939569,60781.0,60779.0,0.19454126]
[1719469029656,0.20739569,60781.0,60779.0,0.19554126]
[1719469030656,0.21339569,60781.0,60779.0,0.19654126]
[1719469031165,0.014,60781.0,60780.0,1.10750603]
[1719469031418,0.014,60781.0,60780.0,1.29284501]
[1719469032495,0.008,60781.0,60780.0,1.30204725]
[1719469032683,0.003,60781.0,60780.0,0.19454122]
[1719469032900,0.002,60781.0,60780.0,0.19454122]
[1719469033105,0.003,60781.0,60780.0,0.20254122]
[1719469034488,0.003,60781.0,60780.0,0.21154122]
[1719469034489,0.004,60781.0,60780.0,0.21154122]
[1719469034923,0.71199719,60781.0,60780.0,0.04920224]
[1719469035124,0.71199719,60781.0,60780.0,0.017]
[1719469035125,0.77462775,60781.0,60780.0,0.017]
[1719469035283,1.60522775,60781.0,60780.0,0.017]
[1719469035483,1.70867494,60781.0,60780.0,0.017]
[1719469036095,1.70767494,60781.0,60780.0,0.008]
[1719469036304,0.19939569,60772.0,60767.0,0.164562]
[1719469036553,0.19939569,60772.0,60768.0,0.16233898]
[1719469036868,0.19939569,60772.0,60768.0,0.32689898]
[1719469037025,0.19939569,60772.0,60769.0,0.023]
[1719469037226,0.19939569,60772.0,60770.0,0.16233898]
[1719469037431,0.36393669,60775.0,60771.0,0.023]
[1719469037659,0.01085391,60774.0,60773.0,0.493639]
[1719469037888,0.19939569,60777.0,60773.0,0.34988498]
[1719469038065,0.01085353,60776.0,60774.0,0.023]
[1719469038473,0.01085353,60776.0,60775.0,0.00915992]
[1719469038657,0.01085353,60776.0,60775.0,0.03215992]
[1719469038853,0.01085353,60776.0,60775.0,0.1944989]
[1719469039559,0.329055,60780.0,60775.0,0.1944989]
[1719469039764,0.329049,60782.0,60776.0,0.18533898]
[1719469040092,0.1,60780.0,60776.0,0.19449886]
[1719469040399,0.593583,60780.0,60776.0,0.19449886]
[1719469040594,0.264528,60780.0,60776.0,0.19449886]
[1719469042412,0.264528,60780.0,60776.0,0.19749886]
[1719469043055,0.264528,60780.0,60776.0,0.19949886]
[1719469043555,0.1,60780.0,60776.0,0.19949886]
[1719469044278,0.264528,60780.0,60776.0,0.19949886]
[1719469044734,0.0732335,60793.0,60776.0,0.19949886]
[1719469044735,0.16451,60787.0,60779.0,0.39893]
[1719469044930,0.1295,60789.0,60780.0,0.18533898]
[1719469044931,0.329023,60786.0,60780.0,0.18533898]
[1719469045158,0.164516,60785.0,60780.0,0.18533898]
[1719469045351,0.164518,60784.0,60780.0,0.19449869]
[1719469045756,0.493545,60785.0,60780.0,0.19449869]
[1719469045957,0.16452,60783.0,60780.0,0.19449869]
[1719469046159,0.822625,60781.0,60780.0,0.03215971]
[1719469046472,1.1667015,60781.0,60780.0,0.024]
[1719469046769,0.822637,60780.0,60779.0,0.001]
[1719469046984,0.8376635,60780.0,60779.0,0.001]
[1719469047201,1.1667185,60780.0,60779.0,0.001]
[1719469047369,1.1667185,60780.0,60760.0,0.1972]
[1719469047370,0.164579,60761.0,60760.0,0.1972]
[1719469047524,0.164579,60761.0,60760.0,0.35953898]
[1719469047713,0.4827645,60761.0,60760.0,0.35953898]
[1719469047919,0.164577,60762.0,60760.0,0.39549288]
[1719469048118,0.164577,60762.0,60761.0,0.16233898]
[1719469048546,0.164563,60767.0,60761.0,0.32691698]
[1719469048747,0.329109,60770.0,60763.0,0.329147]
[1719469048953,0.164555,60770.0,60764.0,0.33019787]
[1719469049151,0.164555,60770.0,60765.0,0.08542908]
[1719469049353,0.164555,60770.0,60766.0,0.16233898]
[1719469049577,0.01128188,60769.0,60767.0,0.023]
[1719469049772,0.164555,60770.0,60767.0,0.023]
[1719469049773,0.164555,60770.0,60768.0,0.16233898]
[1719469050036,0.164555,60770.0,60769.0,0.023]
[1719469050037,0.493664,60770.0,60769.0,0.023]
[1719469050166,0.50507271,60770.0,60769.0,0.18533898]
[1719469051212,0.50507271,60770.0,60769.0,0.023]
[1719469051213,0.83418171,60770.0,60769.0,0.023]
[1719469051412,0.822787,60769.0,60768.0,0.001]
[1719469051666,1.16331071,60769.0,60768.0,0.001]
[1719469051874,0.493704,60765.0,60764.0,0.023]
[1719469052034,0.17077671,60765.0,60764.0,0.18435898]
[1719469052253,0.01140871,60765.0,60764.0,0.20735898]
[1719469052439,0.17597671,60765.0,60764.0,0.20735898]
[1719469052759,0.17597671,60765.0,60764.0,0.21660118]
[1719469052760,0.50511271,60765.0,60764.0,0.21660118]
[1719469052978,0.01100779,60765.0,60764.0,0.21660118]
[1719469053178,0.493694,60767.0,60764.0,0.21660118]
[1719469053179,0.17557379,60766.0,60764.0,0.21660118]
[1719469053333,0.01100779,60765.0,60764.0,0.0322422]
[1719469053742,0.17657579,60765.0,60764.0,0.0322422]
[1719469054353,0.50571179,60765.0,60764.0,0.0322422]
[1719469055067,0.50671179,60765.0,60764.0,0.0392422]
[1719469056193,0.83597751,60765.0,60764.0,0.0392422]
[1719469056557,0.83598003,60765.0,60764.0,0.0392422]
[1719469056766,0.83598003,60765.0,60764.0,0.19233898]
[1719469057513,1.18008926,60765.0,60764.0,0.03]
[1719469057869,1.2289896,60765.0,60764.0,0.03]
[1719469058071,1.18008926,60765.0,60764.0,0.03]
[1719469058498,1.18008926,60765.0,60764.0,0.007]
[1719469058703,1.75705811,60765.0,60764.0,0.007]
[1719469059277,1.75837147,60765.0,60764.0,0.007]
[1719469060316,1.92070518,60765.0,60764.0,0.007]
[1719469060461,1.75837147,60765.0,60764.0,0.007]
[1719469061390,1.66059247,60765.0,60764.0,0.007]
[1719469062205,0.32921,60752.0,60748.0,0.2022]
[1719469062401,0.329213,60751.0,60749.0,0.18533898]
[1719469063132,0.164609,60750.0,60749.0,0.18533898]
[1719469063532,0.164609,60750.0,60749.0,0.24055518]
[1719469063727,0.164607,60751.0,60749.0,0.24055518]
[1719469064320,0.165607,60751.0,60749.0,0.24655518]
[1719469065603,0.166607,60751.0,60749.0,0.25555518]
[1719469065805,0.166607,60751.0,60750.0,0.06223742]
[1719469066010,0.166607,60751.0,60750.0,0.2475764]
[1719469066746,0.165607,60751.0,60750.0,0.2475764]
[1719469066987,0.001,60751.0,60750.0,0.2475764]
[1719469067289,0.002,60751.0,60750.0,0.2535764]
[1719469067662,0.002,60751.0,60750.0,0.26132145]
[1719469069389,0.02680719,60751.0,60750.0,0.75514845]
[1719469069587,0.002,60751.0,60750.0,1.09436645]
[1719469071717,0.002,60751.0,60750.0,1.29436645]
[1719469071923,0.002,60751.0,60750.0,1.81958445]
[1719469073024,0.00147554,60751.0,60750.0,1.81958445]
[1719469074744,0.00147554,60751.0,60750.0,2.14880245]
[1719469075784,0.00147554,60751.0,60750.0,2.34880245]
[1719469077725,0.00147554,60751.0,60750.0,2.58320245]
[1719469079797,0.00147554,60751.0,60750.0,1.26736645]
[1719469080002,0.00147554,60751.0,60750.0,0.44432145]
[1719469080202,0.16608154,60751.0,60750.0,0.18608403]
[1719469080415,0.50775319,60751.0,60750.0,0.18608403]
[1719469080933,0.50775522,60751.0,60750.0,0.18608403]
[1719469081349,0.50775522,60751.0,60750.0,0.02374505]
[1719469081350,1.23787922,60751.0,60750.0,0.02374505]
[1719469081553,1.23787922,60751.0,60750.0,0.016]
[1719469082198,1.25290572,60751.0,60750.0,0.016]
[1719469082398,1.30290572,60751.0,60750.0,0.006]
[1719469082778,1.30290572,60751.0,60750.0,0.029]
[1719469082978,1.30290572,60751.0,60750.0,0.032]
[1719469083432,1.63211772,60751.0,60750.0,0.009]
[1719469083641,1.63268515,60751.0,60750.0,0.009]
[1719469083844,1.63220961,60751.0,60750.0,0.003]
[1719469084084,1.6191805,60751.0,60750.0,0.003]
[1719469084213,1.63251598,60751.0,60750.0,0.008]
[1719469084901,1.1672895,60750.0,60749.0,0.000924]
[1719469085121,1.18062498,60750.0,60749.0,0.000924]
[1719469085330,1.16559848,60750.0,60749.0,0.000924]
[1719469086574,1.16559848,60750.0,60749.0,0.002924]
[1719469086683,1.152263,60750.0,60749.0,0.025924]
[1719469086894,1.16639442,60750.0,60749.0,0.025924]
[1719469087722,1.18142092,60750.0,60749.0,0.028924]
[1719469089246,1.18142092,60750.0,60749.0,0.005924]
[1719469089247,1.63333892,60750.0,60749.0,0.005924]
[1719469089479,1.78528348,60750.0,60749.0,0.005924]
[1719469089710,1.73918937,60750.0,60749.0,0.005924]
[1719469089916,1.75306424,60750.0,60749.0,0.005924]
[1719469090125,1.42384624,60750.0,60749.0,0.005924]
[1719469090757,1.28611974,60750.0,60749.0,0.005924]
[1719469090970,1.28611974,60750.0,60749.0,0.028924]
[1719469091399,1.30114624,60750.0,60749.0,0.028924]
[1719469091597,1.30114624,60750.0,60749.0,0.005924]
[1719469091598,1.75306424,60750.0,60749.0,0.005924]
[1719469091827,0.8381515,60744.0,60743.0,0.0078175]
[1719469092028,1.38292717,60744.0,60743.0,0.0078175]
[1719469092241,1.66336013,60744.0,60743.0,0.0078175]
[1719469092446,1.73658571,60744.0,60743.0,0.0078175]
[1719469092647,1.73878835,60744.0,60743.0,0.0078175]
[1719469093230,1.61211909,60744.0,60743.0,0.0078175]
[1719469093438,1.61211909,60744.0,60743.0,0.0088175]
[1719469093439,1.5966515,60744.0,60743.0,0.0088175]
[1719469093613,1.66110671,60744.0,60743.0,0.0088175]
[1719469093767,2.77182636,60744.0,60743.0,0.0088175]
[1719469093967,2.82313988,60744.0,60743.0,0.0088175]
[1719469094153,2.9062844,60744.0,60743.0,0.0088175]
[1719469094359,2.90643266,60744.0,60743.0,0.0088175]
[1719469094570,2.89643266,60744.0,60743.0,0.0088175]
[1719469095175,2.87203427,60744.0,60743.0,0.0108175]
[1719469095404,1.7864092,60744.0,60743.0,0.0108175]
[1719469095828,1.73509568,60744.0,60743.0,0.0108175]
[1719469096028,1.73501505,60744.0,60743.0,0.0108175]
[1719469097022,2.39366802,60744.0,60743.0,0.0108175]
[1719469097248,2.62975237,60744.0,60743.0,0.0108175]
[1719469097490,2.79208608,60744.0,60743.0,0.0108175]
[1719469097732,2.67380559,60744.0,60743.0,0.0108175]
[1719469097967,2.67380559,60744.0,60743.0,0.0088175]
[1719469097968,2.72747425,60744.0,60743.0,0.0088175]
[1719469098171,2.67380559,60744.0,60743.0,0.0088175]
[1719469098382,2.74346144,60744.0,60743.0,0.0088175]
[1719469098734,2.79218031,60744.0,60743.0,0.0088175]
[1719469098957,2.80618031,60744.0,60743.0,0.0088175]
[1719469099162,2.68810819,60744.0,60743.0,0.0088175]
[1719469099371,1.80551987,60744.0,60743.0,0.0088175]
[1719469099787,1.80551987,60744.0,60743.0,0.0078175]
[1719469100198,1.81951987,60744.0,60743.0,0.0088175]
[1719469101916,1.81355372,60744.0,60743.0,0.0088175]
[1719469102870,1.81324408,60744.0,60743.0,0.0088175]
[1719469103676,1.81326177,60744.0,60743.0,0.0088175]
[1719469104097,1.34628527,60744.0,60743.0,0.0088175]
[1719469104378,1.31084392,60744.0,60743.0,0.0088175]
[1719469105075,1.28284392,60744.0,60743.0,0.0078175]
[1719469105576,1.30063277,60744.0,60743.0,0.0088175]
[1719469105777,1.28560627,60744.0,60743.0,0.0088175]
[1719469107140,0.95635627,60744.0,60743.0,0.0318175]
[1719469107319,0.93835627,60744.0,60743.0,0.0308175]
[1719469107658,1.27560627,60744.0,60743.0,0.0308175]
[1719469107862,1.28560627,60744.0,60743.0,0.0318175]
[1719469108263,1.28560627,60744.0,60743.0,0.0308175]
[1719469108264,1.26760627,60744.0,60743.0,0.0308175]
[1719469108673,1.27375709,60744.0,60743.0,0.0308175]
[1719469108874,0.94450709,60744.0,60743.0,0.0308175]
[1719469109026,0.94450709,60744.0,60743.0,0.0318175]
[1719469109027,0.95150709,60744.0,60743.0,0.0318175]
[1719469109653,0.52225709,60744.0,60743.0,0.0318175]
[1719469110051,0.52225709,60744.0,60743.0,0.05447925]
[1719469110253,0.85150709,60744.0,60743.0,0.05447925]
[1719469110453,0.52225709,60744.0,60743.0,0.05447925]
[1719469110661,0.02838209,60744.0,60743.0,0.40351823]
[1719469110868,0.02238209,60744.0,60743.0,0.40351823]
[1719469111088,0.50925709,60744.0,60743.0,0.40251823]
[1719469111291,0.85353359,60744.0,60743.0,0.2175175]
[1719469111474,1.18578359,60744.0,60743.0,0.1329175]
[1719469111834,1.16809598,60744.0,60743.0,0.0308175]
[1719469112012,1.16709598,60744.0,60743.0,0.0308175]
[1719469112218,1.16709659,60744.0,60743.0,0.0308175]
[1719469112357,1.16709659,60744.0,60743.0,0.0328175]
[1719469112551,1.18212309,60744.0,60743.0,0.0328175]
[1719469112952,1.152375,60744.0,60743.0,0.0328175]
[1719469113198,1.16756598,60744.0,60743.0,0.0328175]
[1719469113413,0.83831598,60744.0,60743.0,0.19515648]
[1719469115044,0.01511497,60744.0,60743.0,0.42084213]
[1719469115445,0.01511497,60744.0,60743.0,0.38265648]
[1719469115647,0.01511497,60745.0,60743.0,0.38265648]
[1719469115779,0.01511497,60745.0,60744.0,0.18533898]
[1719469116689,0.01511497,60747.0,60744.0,0.18533898]
[1719469116891,0.01511497,60746.0,60744.0,0.18533898]
[1719469117110,0.493848,60748.0,60745.0,0.1842]
[1719469117282,0.01619536,60747.0,60746.0,0.18533898]
[1719469117613,0.01619536,60747.0,60746.0,0.67919698]
[1719469117816,0.00084,60751.0,60750.0,0.348809]
[1719469118020,0.00084,60751.0,60750.0,0.86336598]
[1719469118224,0.494658,60751.0,60750.0,0.023]
[1719469118485,0.493875,60744.0,60743.0,0.0078175]
[1719469118695,0.83905081,60744.0,60743.0,0.17015648]
[1719469118905,0.34517581,60744.0,60743.0,0.17015648]
[1719469119029,0.50980081,60744.0,60743.0,0.20559213]
[1719469119840,0.51080081,60744.0,60743.0,0.21359213]
[1719469120044,0.51180081,60744.0,60743.0,0.24159213]
[1719469121054,0.51186102,60744.0,60743.0,0.24159213]
[1719469121254,0.51186102,60744.0,60743.0,0.20615648]
[1719469122341,0.84111102,60744.0,60743.0,0.20615648]
[1719469122952,0.18261102,60744.0,60743.0,0.20615648]
[1719469123662,0.51186102,60744.0,60743.0,0.20615648]
[1719469123862,0.002,60744.0,60743.0,0.70004048]
[1719469125759,0.002,60744.0,60743.0,0.37078448]
[1719469127375,0.002,60744.0,60743.0,1.02929648]
[1719469134558,0.00284,60744.0,60743.0,1.02929648]
[1719469136368,0.00284,60744.0,60743.0,0.70004048]
[1719469136369,0.01832604,60744.0,60743.0,0.70004048]
[1719469136566,0.01832604,60744.0,60743.0,0.20615648]
[1719469136769,0.18295104,60744.0,60743.0,0.25021213]
[1719469136966,0.18339784,60744.0,60743.0,0.25021213]
[1719469138311,0.51264784,60744.0,60743.0,0.25021213]
[1719469139107,0.18339784,60744.0,60743.0,0.25021213]
[1719469140055,0.167465,60744.0,60743.0,0.25021213]
[1719469140257,0.18354991,60744.0,60743.0,0.35561213]
[1719469140434,0.167465,60744.0,60743.0,0.35561213]
[1719469140643,0.18355017,60744.0,60743.0,0.35561213]
[1719469142404,0.51280017,60744.0,60743.0,0.44171213]
[1719469142531,0.51290246,60744.0,60743.0,0.44171213]
[1719469145744,0.51313678,60744.0,60743.0,0.44171213]
[1719469145939,0.51313678,60744.0,60743.0,0.25021213]
[1719469146230,1.22246328,60744.0,60743.0,0.25021213]
[1719469146437,1.22246328,60744.0,60743.0,0.20615648]
[1719469146815,0.87818678,60744.0,60743.0,0.20615648]
[1719469147124,0.84238678,60744.0,60743.0,0.20615648]
[1719469147873,0.67492178,60744.0,60743.0,0.20615648]
[1719469148095,0.83954678,60744.0,60743.0,0.20615648]
[1719469148616,0.83954678,60744.0,60743.0,0.22677213]
[1719469148869,0.8381515,60744.0,60743.0,0.22677213]
[1719469149063,0.83991673,60744.0,60743.0,0.22677213]
[1719469149271,0.83991684,60744.0,60743.0,0.22677213]
[1719469152011,0.83973903,60744.0,60743.0,0.22677213]
[1719469155526,0.823125,60744.0,60743.0,0.22677213]
[1719469155782,0.83992487,60744.0,60743.0,0.22677213]
[1719469159079,0.823125,60744.0,60743.0,0.22677213]
[1719469159412,0.8381515,60744.0,60743.0,0.22677213]
[1719469159737,0.83953523,60744.0,60743.0,0.22677213]
[1719469162131,0.85456173,60744.0,60743.0,0.22677213]
[1719469162370,0.8546033,60744.0,60743.0,0.22677213]
[1719469162773,0.8395768,60744.0,60743.0,0.22677213]
[1719469162979,0.90350175,60744.0,60743.0,0.20615648]
[1719469163184,1.43109582,60744.0,60743.0,0.0438175]
[1719469163389,1.33329891,60744.0,60743.0,0.0438175]
[1719469164474,1.33329891,60744.0,60743.0,0.0208175]
[1719469164916,1.4566698,60744.0,60743.0,0.0208175]
[1719469165152,1.66254891,60744.0,60743.0,0.0208175]
[1719469165400,1.5920515,60744.0,60743.0,0.0208175]
[1719469165629,1.66138158,60744.0,60743.0,0.0208175]
[1719469166246,1.78357081,60744.0,60743.0,0.0208175]
[1719469167355,1.78441081,60744.0,60743.0,0.0208175]
[1719469168499,0.164657,60732.0,60731.0,0.0244175]
[1719469168665,0.18036282,60732.0,60731.0,0.30355648]
[1719469168871,0.164657,60732.0,60731.0,0.30355648]
[1719469169068,0.1803627,60732.0,60731.0,0.30355648]
[1719469169883,0.0157057,60732.0,60731.0,0.39005648]
[1719469170092,0.0177057,60732.0,60731.0,0.510142]
[1719469170297,0.0177057,60732.0,60731.0,0.505142]
[1719469171683,0.01744771,60732.0,60731.0,0.505142]
[1719469174819,0.002,60732.0,60731.0,0.505142]
[1719469175035,0.01735295,60732.0,60731.0,0.505142]
[1719469176686,0.01735295,60732.0,60731.0,0.411342]
[1719469177140,0.01735295,60732.0,60731.0,0.40205648]
[1719469178111,0.01668165,60732.0,60731.0,0.40205648]
[1719469178336,0.18133865,60732.0,60731.0,0.40205648]
[1719469178539,0.18121366,60732.0,60731.0,0.40205648]
[1719469178920,0.96417016,60732.0,60731.0,0.20233898]
[1719469179416,1.31307636,60732.0,60731.0,0.17933898]
[1719469179970,1.29704986,60732.0,60731.0,0.16833898]
[1719469180366,1.29804986,60732.0,60731.0,0.17233898]
[1719469180569,0.01555666,60732.0,60731.0,0.16633898]
[1719469180877,0.01555666,60732.0,60731.0,0.37843898]
[1719469181072,0.01655666,60732.0,60731.0,0.38043898]
[1719469181223,0.01730505,60732.0,60731.0,0.38043898]
[1719469181440,0.01730505,60732.0,60731.0,0.47831655]
[1719469182608,0.002,60732.0,60731.0,1.38292201]
[1719469182802,0.002,60732.0,60731.0,1.50161855]
[1719469183006,0.002,60732.0,60731.0,1.30161855]
[1719469184297,0.002,60732.0,60731.0,1.29961855]
[1719469184298,0.001,60732.0,60731.0,1.29961855]
[1719469184516,0.164634,60741.0,60735.0,0.362749]
[1719469184642,0.0148844,60740.0,60736.0,0.21213694]
[1719469184848,0.0148844,60740.0,60739.0,0.0938]
[1719469185058,0.00084,60744.0,60739.0,0.4746313]
[1719469185250,0.01488093,60743.0,60740.0,0.18533898]
[1719469185590,0.17950893,60743.0,60742.0,0.0938]
[1719469185892,0.17950893,60743.0,60742.0,0.27913898]
[1719469186094,0.329242,60746.0,60742.0,0.34273718]
[1719469186269,0.164628,60743.0,60742.0,0.1803982]
[1719469186909,0.164628,60743.0,60742.0,0.0865982]
[1719469187080,0.329242,60746.0,60742.0,0.1803982]
[1719469187286,0.3442565,60748.0,60743.0,0.18533898]
[1719469187287,0.493875,60744.0,60743.0,0.18533898]
[1719469188666,0.01961744,60749.0,60743.0,0.18533898]
[1719469188667,0.329237,60747.0,60743.0,0.18533898]
[1719469189085,0.329237,60747.0,60745.0,0.0938]
[1719469189086,0.164618,60747.0,60745.0,0.0938]
[1719469189267,0.164618,60747.0,60746.0,0.18533898]
[1719469189484,0.164618,60747.0,60746.0,0.30695288]
[1719469189692,0.493852,60747.0,60746.0,0.30695288]
[1719469189895,0.164618,60747.0,60746.0,0.30695288]
[1719469190325,0.493852,60747.0,60746.0,0.30695288]
[1719469191606,0.493852,60747.0,60746.0,0.41755288]
[1719469192006,0.164618,60747.0,60746.0,0.41755288]
[1719469192245,0.172618,60747.0,60746.0,0.41755288]
[1719469192570,0.01961744,60749.0,60746.0,0.58217088]
[1719469192821,0.00084,60751.0,60748.0,0.0938]
[1719469193046,0.00084,60751.0,60749.0,0.18863087]
[1719469193256,0.00084,60751.0,60749.0,0.18533898]
[1719469194310,0.00084,60751.0,60750.0,0.1986]
[1719469194638,0.00084,60751.0,60750.0,0.47773898]
[1719469194969,0.00084,60751.0,60750.0,0.50124439]
[1719469195636,0.00084,60751.0,60750.0,0.66585339]
[1719469195799,0.00084,60751.0,60750.0,0.99507139]
[1719469195978,0.00284,60751.0,60750.0,0.99507139]
[1719469196184,0.00384,60751.0,60750.0,1.32428939]
[1719469196406,0.00184,60751.0,60750.0,1.32428939]
[1719469196622,0.00084,60751.0,60750.0,1.32428939]
[1719469196826,0.00084,60751.0,60750.0,1.32828939]
[1719469197026,0.00184,60751.0,60750.0,1.33728939]
[1719469197228,0.00184,60751.0,60750.0,1.00407139]
[1719469197625,0.00184,60751.0,60750.0,1.00507139]
[1719469197825,0.00184,60751.0,60750.0,1.33428939]
[1719469199208,0.00284,60751.0,60750.0,1.01507139]
[1719469199623,0.00284,60751.0,60750.0,1.34428939]
[1719469200726,0.00284,60751.0,60750.0,1.67350739]
[1719469201286,0.00284,60751.0,60750.0,2.60272539]
[1719469202305,0.00284,60751.0,60750.0,1.53428939]
[1719469202516,0.00184,60751.0,60750.0,0.19584439]
[1719469202716,0.82587,60751.0,60750.0,0.18233898]
[1719469202920,1.01357,60751.0,60750.0,0.17233898]
[1719469203325,1.01357,60751.0,60750.0,0.18633898]
[1719469203525,1.01357,60751.0,60750.0,0.22111924]
[1719469203747,1.01257,60751.0,60750.0,0.21111924]
[1719469204161,1.01357,60751.0,60750.0,0.20711924]
[1719469204382,1.01357,60751.0,60750.0,0.23011924]
[1719469204583,1.01357,60751.0,60750.0,0.23911924]
[1719469204917,1.02633574,60751.0,60750.0,0.23911924]
[1719469205666,0.95359281,60751.0,60750.0,0.23911924]
[1719469205880,0.95259281,60751.0,60750.0,0.22911924]
[1719469206081,0.93967,60751.0,60750.0,0.22911924]
[1719469206283,0.95259262,60751.0,60750.0,0.22211924]
[1719469207201,0.95259262,60751.0,60750.0,0.22311924]
[1719469208037,0.95259262,60751.0,60750.0,0.026]
[1719469208038,1.29683112,60751.0,60750.0,0.026]
[1719469208471,1.29683112,60751.0,60750.0,0.003]
[1719469208472,1.36973112,60751.0,60750.0,0.003]
[1719469208882,1.36972409,60751.0,60750.0,0.003]
[1719469210079,1.36972409,60751.0,60750.0,0.026]
[1719469212758,1.39553096,60751.0,60750.0,0.026]
[1719469214616,1.39553096,60751.0,60750.0,0.026]
[1719469215019,1.39661148,60751.0,60750.0,0.026]
[1719469215437,1.39661163,60751.0,60750.0,0.026]
[1719469216566,1.41658801,60751.0,60750.0,0.026]
[1719469218929,1.74549224,60751.0,60750.0,0.026]
[1719469221329,1.74591056,60751.0,60750.0,0.026]
[1719469223113,2.28627514,60751.0,60750.0,0.003]
[1719469223316,2.31015648,60751.0,60750.0,0.003]
[1719469223517,2.23754523,60751.0,60750.0,0.003]
[1719469223715,2.56675723,60751.0,60750.0,0.003]
[1719469224525,2.49991998,60751.0,60750.0,0.003]
[1719469224888,2.56774474,60751.0,60750.0,0.003]
[1719469225708,2.59684812,60751.0,60750.0,0.003]
[1719469226425,2.58684812,60751.0,60750.0,0.003]
[1719469226855,1.92842412,60751.0,60750.0,0.003]
[1719469227021,1.71062074,60751.0,60750.0,0.003]